fUST/lending_fUST_20250709
["ID","MTS","AMOUNT","RATE_DAILY","PERIOD"]
[370423677,1752013846998,-160.0,0.00019888,2]
[370423679,1752013847007,-160.0,0.00019888,2]
[370423681,1752013847017,-5018.2909992,0.000199,2]
[370423683,1752013847026,-298973.50862,0.00019999,2]
[370423685,1752013847035,-500.0,0.0002,2]
[370423687,1752013847046,-500.0,0.0002,2]
[370423689,1752013847055,-460.0,0.0002,2]
[370423690,1752013847065,-460.0,0.0002,2]
[370423692,1752013847074,-460.0,0.0002,2]
[370423694,1752013847084,-460.0,0.0002,2]
[370423696,1752013847093,-460.0,0.0002,2]
[370423698,1752013847102,-460.0,0.0002,2]
[370423700,1752013847112,-460.0,0.0002,2]
[370423702,1752013847122,-460.0,0.0002,2]
[370423704,1752013847131,-460.0,0.0002,2]
[370423706,1752013847141,-151.0,0.0002,3]
[370423708,1752013847150,-460.0,0.0002,2]
[370423710,1752013847160,-460.0,0.0002,2]
[370423712,1752013847169,-460.0,0.0002,2]
[370423714,1752013847178,-492.93,0.0002,2]
[370423716,1752013847188,-460.0,0.0002,2]
[370423718,1752013847197,-460.0,0.0002,2]
[370423720,1752013847206,-460.0,0.0002,2]
[370423722,1752013847216,-460.0,0.0002,2]
[370423724,1752013847225,-460.0,0.0002,2]
[370423726,1752013847234,-460.0,0.0002,2]
[370423728,1752013847244,-460.0,0.0002,2]
[370423730,1752013847253,-460.0,0.0002,2]
[370423731,1752013847262,-549.73,0.0002,2]
[370423733,1752013847271,-460.0,0.0002,2]
[370423735,1752013847281,-460.0,0.0002,2]
[370423737,1752013847291,-542.68,0.0002,2]
[370423739,1752013847302,-460.0,0.0002,2]
[370423741,1752013847311,-460.0,0.0002,2]
[370423743,1752013847321,-460.0,0.0002,2]
[370423745,1752013847330,-460.0,0.0002,2]
[370423746,1752013847339,-460.0,0.0002,2]
[370423747,1752013847349,-460.0,0.0002,2]
[370423748,1752013847362,-460.0,0.0002,2]
[370423749,1752013847372,-460.0,0.0002,2]
[370423750,1752013847381,-461.73,0.0002,2]
[370423751,1752013847390,-460.0,0.0002,2]
[370423752,1752013847400,-460.0,0.0002,2]
[370423753,1752013847409,-460.0,0.0002,2]
[370423754,1752013847418,-460.0,0.0002,2]
[370423755,1752013847427,-598.75,0.0002,2]
[370423756,1752013847439,-440.0,0.0002,2]
[370423757,1752013847450,-460.0,0.0002,2]
[370423759,1752013847459,-460.0,0.0002,2]
[370423761,1752013847468,-460.0,0.0002,2]
[370423763,1752013847478,-460.0,0.0002,2]
[370423765,1752013847488,-460.0,0.0002,2]
[370423767,1752013847498,-460.0,0.0002,2]
[370423769,1752013847507,-460.0,0.0002,2]
[370423771,1752013847516,-565.3,0.0002,2]
[370423773,1752013847527,-460.0,0.0002,2]
[370423775,1752013847536,-460.0,0.0002,2]
[370423777,1752013847545,-460.0,0.0002,2]
[370423779,1752013847555,-460.0,0.0002,2]
[370423781,1752013847564,-460.0,0.0002,2]
[370423783,1752013847573,-460.0,0.0002,2]
[370423785,1752013847583,-460.0,0.0002,2]
[370423787,1752013847592,-460.0,0.0002,2]
[370423789,1752013847601,-928.92,0.0002,2]
[370423791,1752013847610,-460.0,0.0002,2]
[370423793,1752013847620,-1520.73,0.0002,2]
[370423795,1752013847630,-3096.96,0.0002,2]
[370423797,1752013847640,-460.0,0.0002,2]
[370423799,1752013847649,-460.0,0.0002,2]
[370423801,1752013847658,-460.0,0.0002,2]
[370423803,1752013847667,-151.0,0.0002,2]
[370423805,1752013847678,-583.83,0.0002,2]
[370423807,1752013847689,-151.0,0.0002,2]
[370423810,1752013847699,-460.0,0.0002,2]
[370423811,1752013847708,-460.0,0.0002,2]
[370423813,1752013847718,-460.0,0.0002,2]
[370423815,1752013847728,-460.0,0.0002,2]
[370423817,1752013847738,-1987.14,0.0002,2]
[370423819,1752013847747,-460.0,0.0002,2]
[370423822,1752013847757,-609.05,0.0002,2]
[370423824,1752013847766,-460.0,0.0002,2]
[370423826,1752013847776,-460.0,0.0002,2]
[370423828,1752013847785,-460.0,0.0002,2]
[370423830,1752013847795,-460.0,0.0002,2]
[370423832,1752013847804,-460.0,0.0002,2]
[370423833,1752013847814,-460.0,0.0002,2]
[370423836,1752013847823,-511.99,0.0002,2]
[370423838,1752013847833,-1341.29,0.0002,2]
[370423840,1752013847842,-460.0,0.0002,2]
[370423841,1752013847851,-914.26,0.0002,2]
[370423843,1752013847860,-460.0,0.0002,2]
[370423845,1752013847870,-460.0,0.0002,2]
[370423847,1752013847879,-460.0,0.0002,2]
[370423849,1752013847888,-460.0,0.0002,2]
[370423851,1752013847899,-454.99788546,0.0002,2]
[370423854,1752013847909,-1056.3,0.0002,2]
[370423855,1752013847918,-460.0,0.0002,2]
[370423857,1752013847928,-662.3,0.0002,2]
[370423860,1752013847937,-460.0,0.0002,2]
[370423861,1752013847946,-460.0,0.0002,2]
[370423864,1752013847956,-460.0,0.0002,2]
[370423865,1752013847965,-460.0,0.0002,2]
[370423868,1752013847975,-151.0,0.0002,2]
[370423870,1752013847984,-460.0,0.0002,2]
[370423872,1752013847994,-460.0,0.0002,2]
[370423874,1752013848003,-460.0,0.0002,2]
[370423876,1752013848013,-1733.52,0.0002,2]
[370423878,1752013848022,-460.0,0.0002,2]
[370423880,1752013848031,-460.0,0.0002,2]
[370423882,1752013848041,-2037.17,0.0002,2]
[370423884,1752013848050,-7788.75320124,0.0002,5]
[370423885,1752013848059,-460.0,0.0002,2]
[370423887,1752013848069,-151.0,0.0002,2]
[370423889,1752013848078,-460.0,0.0002,2]
[370423892,1752013848088,-230.16909466,0.0002,2]
[370423893,1752013848098,-1502.09,0.0002,2]
[370423896,1752013848107,-460.0,0.0002,2]
[370423898,1752013848117,-605.25,0.0002,2]
[370423899,1752013848127,-460.0,0.0002,2]
[370423901,1752013848136,-243.879483,0.0002,2]
[370423903,1752013848145,-1807.54,0.0002,2]
[370423905,1752013848155,-531.19,0.0002,2]
[370423907,1752013848164,-243.879483,0.0002,2]
[370423909,1752013848174,-460.0,0.0002,2]
[370423911,1752013848184,-460.0,0.0002,2]
[370423913,1752013848193,-460.0,0.0002,2]
[370423916,1752013848203,-710.45,0.0002,2]
[370423917,1752013848212,-460.0,0.0002,2]
[370423919,1752013848222,-460.0,0.0002,2]
[370423921,1752013848231,-193.08403378,0.0002,2]
[370423923,1752013848241,-685.6,0.0002,2]
[370423926,1752013848250,-1279.85,0.0002,2]
[370423928,1752013848260,-460.0,0.0002,2]
[370423930,1752013848270,-460.0,0.0002,2]
[370423931,1752013848279,-460.0,0.0002,2]
[370423933,1752013848289,-151.0,0.0002,2]
[370423939,1752013848336,-151.0,0.0002,2]
[370423941,1752013848345,-151.0,0.0002,2]
[370423943,1752013848357,-151.0,0.0002,2]
[370423945,1752013848373,-460.0,0.0002,2]
[370423947,1752013848383,-976.35,0.0002,2]
[370423949,1752013848393,-151.0,0.0002,2]
[370423951,1752013848402,-929.69,0.0002,2]
[370423953,1752013848412,-598.92,0.0002,2]
[370423955,1752013848422,-903.82,0.0002,2]
[370423957,1752013848431,-460.0,0.0002,2]
[370423959,1752013848442,-460.0,0.0002,2]
[370423961,1752013848452,-151.0,0.0002,2]
[370423963,1752013848461,-460.0,0.0002,2]
[370423965,1752013848470,-460.0,0.0002,2]
[370423967,1752013848479,-460.0,0.0002,2]
[370423969,1752013848490,-460.0,0.0002,2]
[370423971,1752013848501,-803.33,0.0002,2]
[370423973,1752013848510,-460.0,0.0002,2]
[370423975,1752013848519,-460.0,0.0002,2]
[370423977,1752013848528,-460.0,0.0002,2]
[370423979,1752013848537,-460.0,0.0002,2]
[370423981,1752013848547,-524.8,0.0002,2]
[370423983,1752013848556,-460.0,0.0002,2]
[370423985,1752013848566,-460.0,0.0002,2]
[370423987,1752013848575,-199.19616753,0.00020055,2]
[370423989,1752013848584,-151.0,0.00020055,2]
[370423991,1752013848593,-151.0,0.00020055,2]
[370423993,1752013848603,-151.0,0.00020055,2]
[370423995,1752013848612,-151.0,0.00020055,2]
[370423997,1752013848621,-151.0,0.00020055,2]
[370423999,1752013848630,-151.0,0.00020055,2]
[370424001,1752013848639,-500.0,0.00020055,2]
[370424003,1752013848648,-217.95655386,0.00020055,2]
[370424005,1752013848658,-151.0,0.00020055,2]
[370424007,1752013848667,-151.0,0.00020055,2]
[370424009,1752013848676,-151.0,0.00020055,2]
[370424011,1752013848685,-298.68294943,0.00020055,2]
[370424013,1752013848694,-246.8883299,0.00020055,2]
[370424015,1752013848704,-279.6042664,0.00020055,2]
[370424017,1752013848713,-151.0,0.00020055,2]
[370424019,1752013848723,-151.0,0.00020055,2]
[370424021,1752013848732,-151.0,0.00020055,2]
[370424023,1752013848741,-151.0,0.00020055,2]
[370424025,1752013848751,-178.372249,0.00020068,2]
[370424027,1752013848760,-151.0,0.00020082,2]
[370424029,1752013848770,-151.0,0.00020082,2]
[370424031,1752013848779,-151.0,0.00020082,2]
[370424033,1752013848789,-151.0,0.00020082,2]
[370424035,1752013848798,-151.0,0.00020082,2]
[370424037,1752013848807,-500.0,0.00020082,2]
[370424039,1752013848816,-151.0,0.00020082,2]
[370424041,1752013848826,-151.0,0.00020082,2]
[370424043,1752013848835,-151.0,0.00020082,2]
[370424045,1752013848846,-151.0,0.00020082,2]
[370424047,1752013848854,-151.0,0.00020082,2]
[370424049,1752013848864,-151.0,0.000201,4]
[370424051,1752013848874,-5018.29099913,0.00020107,2]
[370424053,1752013848883,-151.0,0.0002011,2]
[370424055,1752013848892,-198.0,0.0002011,2]
[370424057,1752013848902,-198.0,0.0002011,2]
[370424059,1752013848911,-151.0,0.0002011,2]
[370424061,1752013848920,-198.0,0.0002011,2]
[370424063,1752013848930,-500.0,0.0002011,2]
[370424065,1752013848940,-198.0,0.0002011,2]
[370424067,1752013848950,-151.0,0.0002011,2]
[370424069,1752013848959,-151.0,0.0002011,2]
[370424071,1752013848969,-151.0,0.0002011,2]
[370424073,1752013848979,-259.98735537,0.00020137,2]
[370424075,1752013848988,-151.0,0.00020137,2]
[370424077,1752013848998,-500.0,0.00020137,2]
[370424079,1752013849008,-151.0,0.00020137,2]
[370424081,1752013849018,-151.0,0.00020137,2]
[370424083,1752013849027,-255.0,0.00020165,2]
[370424085,1752013849038,-500.0,0.00020165,2]
[370424088,1752013849048,-151.0,0.00020165,2]
[370424090,1752013849058,-151.0,0.00020165,2]
[370424092,1752013849069,-632.678999,0.00020187,2]
[370424093,1752013849079,-500.0,0.00020192,2]
[370424096,1752013849089,-245.0,0.00020192,2]
[370424098,1752013849099,-245.0,0.00020192,2]
[370424099,1752013849109,-151.0,0.000202,4]
[370424102,1752013849119,-500.0,0.00020219,2]
[370424104,1752013849129,-215.0738,0.00020229,2]
[370424106,1752013849138,-500.0,0.00020247,2]
[370424108,1752013849148,-1500.0,0.00020268,2]
[370424110,1752013849157,-1000.0,0.00020268,2]
[370424112,1752013849167,-1500.0,0.00020268,2]
[370424114,1752013849176,-460.0,0.00020273,2]
[370424116,1752013849186,-460.0,0.00020273,2]
[370424118,1752013849195,-460.0,0.00020273,2]
[370424120,1752013849204,-460.0,0.00020273,2]
[370424121,1752013849214,-460.0,0.00020273,2]
[370424123,1752013849223,-460.0,0.00020273,2]
[370424126,1752013849232,-319.98270827,0.00020273,2]
[370424128,1752013849242,-492.93,0.00020273,2]
[370424130,1752013849252,-600.62262217,0.00020273,2]
[370424132,1752013849261,-460.0,0.00020273,2]
[370424134,1752013849271,-460.0,0.00020273,2]
[370424136,1752013849280,-460.0,0.00020273,2]
[370424138,1752013849289,-460.0,0.00020273,2]
[370424140,1752013849299,-293.17,0.00020273,2]
[370424142,1752013849308,-460.0,0.00020273,2]
[370424144,1752013849317,-549.73,0.00020273,2]
[370424146,1752013849327,-460.0,0.00020273,2]
[370424148,1752013849336,-542.68,0.00020273,2]
[370424150,1752013849346,-460.0,0.00020273,2]
[370424152,1752013849355,-360.25,0.00020273,2]
[370424154,1752013849368,-361.43,0.00020273,2]
[370424156,1752013849377,-460.0,0.00020273,2]
[370424158,1752013849386,-460.0,0.00020273,2]
[370424160,1752013849396,-204.51,0.00020273,2]
[370424162,1752013849406,-460.0,0.00020273,2]
[370424164,1752013849415,-460.0,0.00020273,2]
[370424166,1752013849425,-461.73,0.00020273,2]
[370424168,1752013849435,-460.0,0.00020273,2]
[370424170,1752013849445,-460.0,0.00020273,2]
[370424172,1752013849456,-460.0,0.00020273,2]
[370424173,1752013849465,-198.89,0.00020273,2]
[370424176,1752013849475,-546.59,0.00020273,2]
[370424177,1752013849486,-460.0,0.00020273,2]
[370424180,1752013849495,-460.0,0.00020273,2]
[370424182,1752013849506,-460.0,0.00020273,2]
[370424184,1752013849518,-460.0,0.00020273,2]
[370424186,1752013849527,-460.0,0.00020273,2]
[370424188,1752013849537,-565.3,0.00020273,2]
[370424190,1752013849547,-460.0,0.00020273,2]
[370424192,1752013849557,-460.0,0.00020273,2]
[370424194,1752013849567,-460.0,0.00020273,2]
[370424196,1752013849577,-460.0,0.00020273,2]
[370424198,1752013849587,-460.0,0.00020273,2]
[370424200,1752013849595,-460.0,0.00020273,2]
[370424202,1752013849607,-369.22034292,0.00020273,2]
[370424204,1752013849617,-928.92,0.00020273,2]
[370424205,1752013849626,-460.0,0.00020273,2]
[370424206,1752013849635,-1520.73,0.00020273,2]
[370424207,1752013849645,-3096.96,0.00020273,2]
[370424208,1752013849654,-446.18,0.00020273,2]
[370424209,1752013849663,-538.09417983,0.00020273,2]
[370424210,1752013849672,-553.54715124,0.00020273,2]
[370424211,1752013849682,-460.0,0.00020273,2]
[370424212,1752013849691,-460.0,0.00020273,2]
[370424213,1752013849701,-460.0,0.00020273,2]
[370424214,1752013849710,-460.0,0.00020273,2]
[370424215,1752013849720,-1987.14,0.00020273,2]
[370424216,1752013849729,-460.0,0.00020273,2]
[370424217,1752013849738,-609.05,0.00020273,2]
[370424218,1752013849748,-460.0,0.00020273,2]
[370424219,1752013849757,-460.0,0.00020273,2]
[370424220,1752013849766,-460.0,0.00020273,2]
[370424221,1752013849775,-460.0,0.00020273,2]
[370424222,1752013849784,-460.0,0.00020273,2]
[370424223,1752013849794,-460.0,0.00020273,2]
[370424224,1752013849803,-511.99,0.00020273,2]
[370424225,1752013849812,-1341.29,0.00020273,2]
[370424226,1752013849821,-460.0,0.00020273,2]
[370424227,1752013849830,-914.26,0.00020273,2]
[370424228,1752013849840,-460.0,0.00020273,2]
[370424229,1752013849850,-460.0,0.00020273,2]
[370424230,1752013849859,-460.0,0.00020273,2]
[370424231,1752013849868,-1056.3,0.00020273,2]
[370424232,1752013849878,-460.0,0.00020273,2]
[370424233,1752013849887,-662.3,0.00020273,2]
[370424234,1752013849897,-460.0,0.00020273,2]
[370424235,1752013849907,-460.0,0.00020273,2]
[370424236,1752013849916,-206.72417044,0.00020273,2]
[370424237,1752013849926,-558.73,0.00020273,2]
[370424238,1752013849936,-460.0,0.00020273,2]
[370424239,1752013849945,-321.48649688,0.00020273,2]
[370424240,1752013850290,-460.0,0.00019178,2]
[370424241,1752013850300,-138.51350312,0.00020273,2]
[370424242,1752013850310,-1733.52,0.00020273,2]
[370424243,1752013850319,-460.0,0.00020273,2]
[370424244,1752013850328,-2037.17,0.00020273,2]
[370424245,1752013850338,-460.0,0.00020273,2]
[370424246,1752013850347,-1502.09,0.00020273,2]
[370424248,1752013850360,-460.0,0.00020273,2]
[370424250,1752013850370,-605.25,0.00020273,2]
[370424252,1752013850380,-460.0,0.00020273,2]
[370424254,1752013850389,-1807.54,0.00020273,2]
[370424256,1752013850400,-531.19,0.00020273,2]
[370424258,1752013850409,-460.0,0.00020273,2]
[370424260,1752013850419,-460.0,0.00020273,2]
[370424262,1752013850429,-460.0,0.00020273,2]
[370424264,1752013850439,-710.45,0.00020273,2]
[370424266,1752013850448,-460.0,0.00020273,2]
[370424268,1752013850458,-460.0,0.00020273,2]
[370424270,1752013850467,-685.6,0.00020273,2]
[370424272,1752013850477,-1279.85,0.00020273,2]
[370424273,1752013850487,-460.0,0.00020273,2]
[370424274,1752013850496,-460.0,0.00020273,2]
[370424276,1752013850506,-460.0,0.00020273,2]
[370424278,1752013850516,-460.0,0.00020273,2]
[370424280,1752013850525,-976.35,0.00020273,2]
[370424282,1752013850535,-929.69,0.00020273,2]
[370424284,1752013850544,-598.92,0.00020273,2]
[370424286,1752013850555,-500.0,0.00020273,2]
[370424288,1752013850565,-460.0,0.00020273,2]
[370424290,1752013850574,-903.82,0.00020273,2]
[370424291,1752013850583,-460.0,0.00020273,2]
[370424292,1752013850593,-460.0,0.00020273,2]
[370424293,1752013850602,-460.0,0.00020273,2]
[370424294,1752013850611,-460.0,0.00020273,2]
[370424295,1752013850620,-803.33,0.00020273,2]
[370424296,1752013850630,-460.0,0.00020273,2]
[370424297,1752013850640,-460.0,0.00020273,2]
[370424298,1752013850649,-460.0,0.00020273,2]
[370424299,1752013850659,-460.0,0.00020273,2]
[370424300,1752013850668,-524.8,0.00020273,2]
[370424301,1752013850678,-460.0,0.00020273,2]
[370424302,1752013850687,-471.13,0.00020273,2]
[370424303,1752013850696,-500.0,0.00020274,2]
[370424304,1752013850706,-500.0,0.00020302,2]
[370424305,1752013850716,-5018.29099913,0.00020314,3]
[370424306,1752013850726,-151.0,0.00020314,2]
[370424307,1752013850737,-151.0,0.00020314,2]
[370424308,1752013850746,-151.0,0.00020314,2]
[370424309,1752013850756,-500.0,0.00020329,2]
[370424310,1752013850766,-500.0,0.00020356,2]
[370424311,1752013850776,-500.0,0.00020384,2]
[370424312,1752013850785,-151.0,0.000204,3]
[370424313,1752013850795,-151.0,0.000204,3]
[370424314,1752013850805,-500.0,0.00020411,2]
[370424315,1752013850815,-500.0,0.00020439,2]
[370424316,1752013850825,-500.0,0.00020466,2]
[370424317,1752013850835,-500.0,0.00020493,2]
[370424318,1752013850844,-178.372249,0.00020514,2]
[370424319,1752013850854,-160.0,0.00020521,3]
[370424320,1752013850864,-5018.29099913,0.00020521,3]
[370424321,1752013850874,-500.0,0.00020521,2]
[370424322,1752013850883,-460.0,0.00020547,2]
[370424323,1752013850894,-460.0,0.00020547,2]
[370424324,1752013850903,-460.0,0.00020547,2]
[370424325,1752013850913,-460.0,0.00020547,2]
[370424326,1752013850923,-102.51021255,0.00020547,2]
[370424327,1752013850937,-357.48978745,0.00020547,2]
[370424328,1752013850947,-492.93,0.00020547,2]
[370424329,1752013850958,-460.0,0.00020547,2]
[370424330,1752013850967,-151.0,0.00020547,2]
[370424331,1752013850978,-460.0,0.00020547,2]
[370424332,1752013850991,-460.0,0.00020547,2]
[370424333,1752013851001,-435.8,0.00020547,2]
[370424334,1752013851144,-460.0,0.00020547,2]
[370424335,1752013851154,-549.73,0.00020547,2]
[370424336,1752013851163,-460.0,0.00020547,2]
[370424337,1752013851173,-542.68,0.00020547,2]
[370424338,1752013851183,-460.0,0.00020547,2]
[370424339,1752013851192,-460.0,0.00020547,2]
[370424340,1752013851201,-236.52,0.00020547,2]
[370424341,1752013851211,-578.93889978,0.00020547,2]
[370424342,1752013851220,-460.0,0.00020547,2]
[370424343,1752013851229,-461.73,0.00020547,2]
[370424344,1752013851240,-460.0,0.00020547,2]
[370424345,1752013851249,-460.0,0.00020547,2]
[370424346,1752013851258,-460.0,0.00020547,2]
[370424347,1752013851268,-151.0,0.00020547,2]
[370424348,1752013851278,-151.0,0.00020547,2]
[370424349,1752013851287,-151.0,0.00020547,2]
[370424350,1752013851296,-151.0,0.00020547,2]
[370424351,1752013851306,-151.0,0.00020547,2]
[370424352,1752013851316,-151.0,0.00020547,2]
[370424353,1752013851326,-195.031207,0.00020547,2]
[370424354,1752013851335,-565.3,0.00020547,2]
[370424355,1752013851344,-460.0,0.00020547,2]
[370424356,1752013851354,-460.0,0.00020547,2]
[370424357,1752013851366,-460.0,0.00020547,2]
[370424358,1752013851375,-460.0,0.00020547,2]
[370424359,1752013851385,-460.0,0.00020547,2]
[370424360,1752013851395,-460.0,0.00020547,2]
[370424361,1752013851405,-928.92,0.00020547,2]
[370424362,1752013851415,-460.0,0.00020547,2]
[370424363,1752013851425,-84.56057799,0.00020547,2]
[370424364,1752013851514,-460.0,0.00019178,2]
[370424365,1752013851523,-460.0,0.00019178,2]
[370424366,1752013851533,-322.50935835,0.00019452,2]
[370424367,1752013851542,-460.0,0.00019452,2]
[370424368,1752013851552,-854.89255276,0.00019685,2]
[370424369,1752013851561,-151.0,0.00019999,2]
[370424370,1752013851570,-151.0,0.00020384,2]
[370424371,1752013851579,-1436.16942201,0.00020547,2]
[370424372,1752013851589,-328.63649677,0.00020547,2]
[370424386,1752013987729,597.598593,0.00013699,2]
[370424393,1752014160711,218.40380928,0.00018119,2]
[370424394,1752014259884,218.40380927,0.00018119,2]
[370424411,1752014960686,1000.0,0.00024657,60]
[370424946,1752015043519,-671.0,0.00018218,2]
[370424948,1752015043529,-300.0,0.00018218,2]
[370424950,1752015043539,-212.44314408,0.00018219,2]
[370424954,1752015043566,-438.30177485,0.00018219,2]
[370425215,1752015046337,-503.83,0.00018219,2]
[370425217,1752015046351,-1061.89773267,0.00018219,2]
[370425228,1752015046451,-3468.37961003,0.00018219,2]
[370427346,1752015117006,627.696704,0.00013699,2]
[370427349,1752015534091,2197.0,0.00025292,120]
[370427350,1752015921717,65343.9826629,0.00027397,120]
[370427355,1752016227113,6528.50465884,0.00027397,120]
[370427360,1752016232498,-300.0,0.00018203,2]
[370427361,1752016232508,-1506.7790758,0.00018204,2]
[370427408,1752016238476,-858.48232407,0.00018204,2]
[370427409,1752016238518,-22534.73860013,0.00018204,2]
[370427410,1752016238529,-660.3864376,0.00019068,2]
[370427411,1752016238539,-1369.72089782,0.00019078,2]
[370427412,1752016238548,-10865.95376722,0.00019078,2]
[370427413,1752016238558,-490.02,0.00019168,3]
[370427414,1752016238568,-325.32,0.00019168,3]
[370427415,1752016238577,-14517.37247281,0.00019176,3]
[370427416,1752016238588,-12582.33653824,0.00019176,3]
[370427417,1752016238597,-267.27731701,0.00019177,2]
[370427418,1752016238607,-500.0,0.00019177,2]
[370427419,1752016238616,-500.0,0.00019177,2]
[370427420,1752016238625,-500.0,0.00019177,2]
[370427421,1752016238639,-530.07517325,0.00019177,2]
[370427422,1752016238649,-500.0,0.00019177,2]
[370427423,1752016238659,-500.0,0.00019177,2]
[370427424,1752016238669,-500.0,0.00019177,2]
[370427425,1752016238679,-160.57587495,0.00019177,2]
[370427426,1752016238688,-600.0,0.00019177,2]
[370427427,1752016238697,-219.38529103,0.00019177,2]
[370427428,1752016238707,-460.0,0.00019178,2]
[370427429,1752016238716,-460.0,0.00019178,2]
[370427430,1752016238725,-460.0,0.00019178,2]
[370427431,1752016238735,-460.0,0.00019178,2]
[370427432,1752016238744,-460.0,0.00019178,2]
[370427433,1752016238754,-462.13907283,0.00019178,2]
[370427434,1752016238763,-460.0,0.00019178,2]
[370427435,1752016238772,-463.6476598,0.00019178,2]
[370427436,1752016238782,-460.0,0.00019178,2]
[370427437,1752016238791,-460.21681655,0.00019178,2]
[370427438,1752016238800,-460.0,0.00019178,2]
[370427439,1752016238810,-460.0,0.00019178,2]
[370427440,1752016238820,-590.52688919,0.00019178,2]
[370427441,1752016238829,-408.67765343,0.00019178,2]
[370427442,1752016238838,-460.0,0.00019178,2]
[370427443,1752016238847,-460.49459647,0.00019178,2]
[370427444,1752016238857,-460.0,0.00019178,2]
[370427445,1752016238866,-460.0,0.00019178,2]
[370427446,1752016238876,-460.0,0.00019178,2]
[370427447,1752016238885,-496.81061569,0.00019178,2]
[370427448,1752016238894,-460.0,0.00019178,2]
[370427449,1752016238904,-460.0,0.00019178,2]
[370427450,1752016238913,-460.0,0.00019178,2]
[370427451,1752016238923,-460.0,0.00019178,2]
[370427452,1752016238932,-460.0,0.00019178,2]
[370427453,1752016238942,-500.0,0.00019178,2]
[370427454,1752016238951,-460.0,0.00019178,2]
[370427455,1752016238960,-460.0,0.00019178,2]
[370427456,1752016238969,-441.78273,0.00019178,2]
[370427457,1752016238979,-460.0,0.00019178,2]
[370427458,1752016238987,-460.0,0.00019178,2]
[370427459,1752016238997,-460.0,0.00019178,2]
[370427460,1752016239006,-460.0,0.00019178,2]
[370427461,1752016239016,-460.0,0.00019178,2]
[370427462,1752016239025,-460.0,0.00019178,2]
[370427463,1752016239034,-460.0,0.00019178,2]
[370427464,1752016239043,-460.0,0.00019178,2]
[370427465,1752016239052,-460.0,0.00019178,2]
[370427466,1752016239061,-460.0,0.00019178,2]
[370427467,1752016239071,-460.0,0.00019178,2]
[370427468,1752016239080,-460.0,0.00019178,2]
[370427469,1752016239090,-460.0,0.00019178,2]
[370427470,1752016239099,-461.27938966,0.00019178,2]
[370427471,1752016239108,-1000.0,0.00019178,2]
[370427472,1752016239118,-598.07720748,0.00019178,2]
[370427473,1752016239127,-460.0,0.00019178,2]
[370427474,1752016239136,-460.0,0.00019178,2]